fUSD/lending_fUSD_20241209
["ID","MTS","AMOUNT","RATE_DAILY","PERIOD"]
[344717808,1733734258711,-562.33341777,9.999e-05,2]
[344717809,1733734258721,-500.0,9.999e-05,2]
[344717810,1733734258730,-500.0,9.999e-05,2]
[344717811,1733734258739,-500.0,9.999e-05,2]
[344717812,1733734258749,-500.0,9.999e-05,2]
[344717813,1733734258758,-500.0,9.999e-05,2]
[344717814,1733734258767,-500.0,9.999e-05,2]
[344717815,1733734258776,-500.0,9.999e-05,2]
[344717816,1733734258786,-413.5,9.999e-05,2]
[344717817,1733734258795,-500.0,9.999e-05,2]
[344717818,1733734258805,-500.0,9.999e-05,2]
[344717819,1733734258814,-415.74997201,9.999e-05,2]
[344717820,1733734258823,-890.6,9.999e-05,2]
[344717821,1733734258832,-890.6,9.999e-05,2]
[344717822,1733734258842,-890.6,9.999e-05,2]
[344717823,1733734258851,-890.6,9.999e-05,2]
[344717824,1733734258861,-890.6,9.999e-05,2]
[344717825,1733734258870,-890.6,9.999e-05,2]
[344717826,1733734258879,-890.6,9.999e-05,2]
[344717827,1733734258889,-890.6,9.999e-05,2]
[344717828,1733734258898,-890.6,9.999e-05,2]
[344717829,1733734258908,-890.6,9.999e-05,2]
[344717830,1733734258917,-890.6,9.999e-05,2]
[344717831,1733734258926,-890.6,9.999e-05,2]
[344717832,1733734258935,-890.6,9.999e-05,2]
[344717833,1733734258949,-1031.29,9.999e-05,2]
[344717834,1733734258960,-890.6,9.999e-05,2]
[344717835,1733734258970,-890.6,9.999e-05,2]
[344717836,1733734258979,-1031.29,9.999e-05,2]
[344717837,1733734258988,-890.6,9.999e-05,2]
[344717838,1733734258998,-1031.29,9.999e-05,2]
[344717839,1733734259007,-890.78,9.999e-05,2]
[344717840,1733734259016,-1031.29,9.999e-05,2]
[344717841,1733734259025,-812.78,9.999e-05,2]
[344717842,1733734259035,-1031.29,9.999e-05,2]
[344717843,1733734259044,-1031.29,9.999e-05,2]
[344717844,1733734259054,-812.78,9.999e-05,2]
[344717845,1733734259063,-1455.7,9.999e-05,2]
[344717846,1733734259073,-1031.29,9.999e-05,2]
[344717847,1733734259082,-1455.7,9.999e-05,2]
[344717848,1733734259092,-1031.29,9.999e-05,2]
[344717849,1733734259101,-812.78,9.999e-05,2]
[344717850,1733734259111,-1031.29,9.999e-05,2]
[344717851,1733734259120,-1455.7,9.999e-05,2]
[344717852,1733734259130,-812.78,9.999e-05,2]
[344717853,1733734259140,-1031.29,9.999e-05,2]
[344717854,1733734259151,-812.78,9.999e-05,2]
[344717855,1733734259162,-1455.7,9.999e-05,2]
[344717856,1733734259172,-1031.29,9.999e-05,2]
[344717857,1733734259181,-812.78,9.999e-05,2]
[344717858,1733734259194,-1455.7,9.999e-05,2]
[344717859,1733734259204,-1031.29,9.999e-05,2]
[344717860,1733734259215,-812.78,9.999e-05,2]
[344717861,1733734259227,-1455.7,9.999e-05,2]
[344717862,1733734259236,-1031.29,9.999e-05,2]
[344717863,1733734259246,-812.78,9.999e-05,2]
[344717864,1733734259255,-812.78,9.999e-05,2]
[344717865,1733734259265,-1455.7,9.999e-05,2]
[344717866,1733734259274,-1031.29,9.999e-05,2]
[344717867,1733734259283,-812.78,9.999e-05,2]
[344717868,1733734259293,-1455.7,9.999e-05,2]
[344717869,1733734259302,-1031.29,9.999e-05,2]
[344717870,1733734259311,-1455.7,9.999e-05,2]
[344717871,1733734259320,-1031.29,9.999e-05,2]
[344717872,1733734259329,-812.78,9.999e-05,2]
[344717873,1733734259339,-1455.7,9.999e-05,2]
[344717874,1733734259348,-1031.29,9.999e-05,2]
[344717875,1733734259358,-1455.7,9.999e-05,2]
[344717876,1733734259367,-812.78,9.999e-05,2]
[344717877,1733734259376,-1031.33660918,9.999e-05,2]
[344717878,1733734259386,-1455.7,9.999e-05,2]
[344717879,1733734259396,-812.78,9.999e-05,2]
[344717880,1733734259405,-1455.7,9.999e-05,2]
[344717881,1733734259415,-812.78,9.999e-05,2]
[344717882,1733734259424,-1455.7,9.999e-05,2]
[344717883,1733734259434,-1455.7,9.999e-05,2]
[344717884,1733734259445,-812.78,9.999e-05,2]
[344717885,1733734259455,-812.78,9.999e-05,2]
[344717886,1733734259464,-1455.7,9.999e-05,2]
[344717887,1733734259474,-1455.7,9.999e-05,2]
[344717888,1733734259483,-1455.7,9.999e-05,2]
[344717889,1733734259493,-1455.8322867,9.999e-05,2]
[344717890,1733734259502,-812.78,9.999e-05,2]
[344717891,1733734259511,-812.78,9.999e-05,2]
[344717892,1733734259520,-812.78,9.999e-05,2]
[344717893,1733734259530,-812.78,9.999e-05,2]
[344717894,1733734259539,-812.85,9.999e-05,2]
[344717895,1733734259549,-500.0,9.999e-05,2]
[344717896,1733734259558,-500.0,9.999e-05,2]
[344717897,1733734259568,-500.0,9.999e-05,2]
[344717898,1733734259577,-500.0,9.999e-05,2]
[344717899,1733734259587,-500.0,9.999e-05,2]
[344717900,1733734259596,-500.0,9.999e-05,2]
[344717901,1733734259606,-500.0,9.999e-05,2]
[344717902,1733734259616,-421.94355134,9.999e-05,2]
[344717903,1733734259625,-706.99,9.999e-05,2]
[344717904,1733734259634,-706.99,9.999e-05,2]
[344717905,1733734259704,-706.99,9.999e-05,2]
[344717906,1733734259715,-706.99,9.999e-05,2]
[344717907,1733734259725,-706.99,9.999e-05,2]
[344717908,1733734259735,-706.99,9.999e-05,2]
[344717909,1733734259744,-706.99,9.999e-05,2]
[344717910,1733734259753,-706.99,9.999e-05,2]
[344717911,1733734259763,-706.99,9.999e-05,2]
[344717912,1733734259773,-706.99,9.999e-05,2]
[344717913,1733734259782,-706.99,9.999e-05,2]
[344717914,1733734259792,-706.99,9.999e-05,2]
[344717915,1733734259801,-706.99,9.999e-05,2]
[344717916,1733734259810,-706.99,9.999e-05,2]
[344717917,1733734259820,-706.99,9.999e-05,2]
[344717918,1733734259829,-706.99,9.999e-05,2]
[344717919,1733734259838,-706.99,9.999e-05,2]
[344717920,1733734259847,-706.99,9.999e-05,2]
[344717921,1733734259856,-706.99,9.999e-05,2]
[344717922,1733734259866,-706.99,9.999e-05,2]
[344717923,1733734259875,-707.15,9.999e-05,2]
[344717924,1733734259884,-500.0,9.999e-05,2]
[344717925,1733734259894,-500.0,9.999e-05,2]
[344717926,1733734259905,-500.0,9.999e-05,2]
[344717927,1733734259915,-500.0,9.999e-05,2]
[344717928,1733734259924,-500.0,9.999e-05,2]
[344717929,1733734259933,-500.0,9.999e-05,2]
[344717930,1733734259947,-500.0,9.999e-05,2]
[344717931,1733734259957,-500.0,9.999e-05,2]
[344717932,1733734259966,-500.0,9.999e-05,2]
[344717933,1733734259976,-500.0,9.999e-05,2]
[344717934,1733734259985,-500.0,9.999e-05,2]
[344717935,1733734259994,-500.0,9.999e-05,2]
[344717936,1733734260003,-500.0,9.999e-05,2]
[344717937,1733734260013,-500.0,9.999e-05,2]
[344717938,1733734260023,-500.0,9.999e-05,2]
[344717939,1733734260032,-500.0,9.999e-05,2]
[344717940,1733734260042,-500.0,9.999e-05,2]
[344717941,1733734260052,-306.67,9.999e-05,2]
[344717942,1733734260062,-500.0,9.999e-05,2]
[344717943,1733734260072,-500.0,9.999e-05,2]
[344717944,1733734260081,-500.0,9.999e-05,2]
[344717945,1733734260090,-500.0,9.999e-05,2]
[344717946,1733734260100,-486.33,9.999e-05,2]
[344717947,1733734260110,-500.0,9.999e-05,2]
[344717948,1733734260119,-329.1,9.999e-05,2]
[344717949,1733734260128,-645.9,9.999e-05,2]
[344717950,1733734260138,-645.9,9.999e-05,2]
[344717951,1733734260149,-645.9,9.999e-05,2]
[344717952,1733734260158,-645.9,9.999e-05,2]
[344717953,1733734260168,-645.9,9.999e-05,2]
[344717954,1733734260177,-645.9,9.999e-05,2]
[344717955,1733734260187,-645.9,9.999e-05,2]
[344717956,1733734260204,-645.9,9.999e-05,2]
[344717957,1733734260214,-645.9,9.999e-05,2]
[344717958,1733734260226,-319.59633648,9.999e-05,2]
[344717959,1733734260595,-326.30366352,9.999e-05,2]
[344717960,1733734260605,-170.15133648,9.999e-05,2]
[344717961,1733734260617,-329.84866352,9.999e-05,2]
[344717962,1733734260627,-645.9,9.999e-05,2]
[344717963,1733734260636,-364.32003906,9.999e-05,2]
[344717967,1733734400959,300.0,0.0002,120]
[344717987,1733735435209,-430.68063875,8.219e-05,2]
[344717988,1733735435377,-1567.16936125,8.219e-05,2]
[344717989,1733735435388,-615.94,8.981e-05,2]
[344717990,1733735435397,-1527.25794434,8.981e-05,2]
[344717991,1733735435407,-1283.36670499,9e-05,3]
[344717992,1733735435416,-1000.0,9.008e-05,2]
[344717993,1733735435424,-300.0,9.079e-05,2]
[344717994,1733735435433,-4882.24630711,9.08e-05,2]
[344717995,1733735435445,-19017.75369289,9.08e-05,2]
[344717996,1733735435455,-250.0,9.104e-05,2]
[344717997,1733735435465,-150.0,9.108e-05,2]
[344717998,1733735435477,-16727.0,9.13e-05,2]
[344717999,1733735435486,-155.27,9.158e-05,2]
[344718000,1733735435496,-250.0,9.179e-05,2]
[344718001,1733735435505,-379.8,9.18e-05,2]
[344718002,1733735435515,-328.637,9.5e-05,2]
[344718003,1733735435525,-619.0,9.606e-05,2]
[344718004,1733735435535,-722.972,9.763e-05,2]
[344718005,1733735435544,-200.0,9.839e-05,2]
[344718006,1733735435553,-500.0,9.863e-05,2]
[344718007,1733735435563,-500.0,9.898e-05,2]
[344718008,1733735435572,-150.0,9.899e-05,2]
[344718009,1733735435582,-2417.36257912,9.9e-05,2]
[344718010,1733735435591,-5862.7697,9.9e-05,2]
[344718011,1733735435601,-300.0,9.9e-05,7]
[344718012,1733735435610,-255.0,9.9e-05,4]
[344718013,1733735435620,-1785.253,9.939e-05,2]
[344718014,1733735435629,-172.684,9.939e-05,2]
[344718015,1733735435638,-732.818,9.94e-05,2]
[344718016,1733735435648,-973.0,9.94e-05,2]
[344718017,1733735435658,-535.0,9.94e-05,2]
[344718019,1733735435667,-150.0,9.94e-05,2]
[344718021,1733735435676,-416.0,9.973e-05,2]
[344718023,1733735435685,-469.94651877,9.973e-05,2]
[344718025,1733735435695,-420.0,9.987e-05,2]
[344718027,1733735435704,-2307.3630619,9.991e-05,2]
[344718028,1733735435713,-817.1290291,9.991e-05,2]
[344718030,1733735435725,-2207.8878806,9.993e-05,2]
[344718032,1733735435738,-781.9009111,9.993e-05,2]
[344718034,1733735435748,-500.0,9.998e-05,2]
[344718036,1733735435757,-601.68,9.998e-05,2]
[344718038,1733735435767,-500.0,9.998e-05,2]
[344718040,1733735435778,-441.52709112,9.998e-05,2]
[344718041,1733735435787,-500.0,9.998e-05,2]
[344718043,1733735435796,-500.0,9.998e-05,2]
[344718045,1733735435805,-614.61,9.998e-05,2]
[344718047,1733735435815,-500.0,9.998e-05,2]
[344718049,1733735435824,-245.28,9.998e-05,2]
[344718051,1733735435834,-500.0,9.998e-05,2]
[344718053,1733735435844,-198.01943631,9.998e-05,2]
[344718055,1733735435855,-500.0,9.998e-05,2]
[344718058,1733735435865,-500.0,9.998e-05,2]
[344718061,1733735435874,-500.0,9.998e-05,2]
[344718064,1733735435884,-500.0,9.998e-05,2]
[344718066,1733735435894,-569.6,9.998e-05,2]
[344718068,1733735435903,-683.42,9.998e-05,2]
[344718070,1733735435913,-500.0,9.998e-05,2]
[344718072,1733735435922,-458.90590779,9.999e-05,3]
[344718074,1733735435932,-23865.93075857,9.999e-05,2]
[344718078,1733735435965,-10986.55331932,9.999e-05,2]
[344718081,1733735435980,-10468.8,9.999e-05,2]
[344718082,1733735435991,-7382.376725,9.999e-05,2]
[344718083,1733735436002,-6127.228,9.999e-05,2]
[344718084,1733735436013,-5695.5,9.999e-05,2]
[344718094,1733735437804,-589.0,9.998e-05,2]
[344718095,1733735437815,-48870.89,9.999e-05,2]
[344718096,1733735437827,-136602.72119711,9.999e-05,2]
[344718097,1733735437837,-500.0,9.999e-05,2]
[344718098,1733735437847,-500.0,9.999e-05,2]
[344718099,1733735437857,-500.0,9.999e-05,2]
[344718100,1733735437866,-500.0,9.999e-05,2]
[344718101,1733735437876,-500.0,9.999e-05,2]
[344718102,1733735437885,-511.21455507,9.999e-05,2]
[344718103,1733735437895,-601.68,9.999e-05,2]
[344718104,1733735437904,-601.68,9.999e-05,2]
[344718105,1733735437914,-601.68,9.999e-05,2]
[344718106,1733735437923,-601.68,9.999e-05,2]
[344718107,1733735437933,-601.68,9.999e-05,2]
[344718108,1733735437942,-601.68,9.999e-05,2]
[344718109,1733735437951,-601.68,9.999e-05,2]
[344718110,1733735437961,-601.68,9.999e-05,2]
[344718111,1733735437970,-601.68,9.999e-05,2]
[344718112,1733735437982,-601.68,9.999e-05,2]
[344718113,1733735437992,-601.68,9.999e-05,2]
[344718114,1733735438001,-601.68,9.999e-05,2]
[344718115,1733735438011,-601.68,9.999e-05,2]
[344718116,1733735438021,-601.68,9.999e-05,2]
[344718117,1733735438031,-601.68,9.999e-05,2]
[344718118,1733735438040,-601.68,9.999e-05,2]
[344718119,1733735438050,-601.68,9.999e-05,2]
[344718120,1733735438060,-601.68,9.999e-05,2]
[344718121,1733735438070,-601.68,9.999e-05,2]
[344718122,1733735438080,-601.68,9.999e-05,2]
[344718123,1733735438089,-601.68,9.999e-05,2]
[344718124,1733735438098,-601.68,9.999e-05,2]
[344718125,1733735438108,-601.71635566,9.999e-05,2]
[344718126,1733735438118,-500.0,9.999e-05,2]
[344718127,1733735438127,-500.0,9.999e-05,2]
[344718128,1733735438136,-500.0,9.999e-05,2]
[344718129,1733735438144,-500.0,9.999e-05,2]
[344718130,1733735438154,-500.0,9.999e-05,2]
[344718131,1733735438163,-500.0,9.999e-05,2]
[344718132,1733735438173,-500.0,9.999e-05,2]
[344718133,1733735438183,-500.0,9.999e-05,2]
[344718134,1733735438192,-500.0,9.999e-05,2]
[344718135,1733735438201,-476.58,9.999e-05,2]
[344718136,1733735438211,-996.83,9.999e-05,2]
[344718137,1733735438220,-500.0,9.999e-05,2]
[344718138,1733735438230,-552.86,9.999e-05,2]
[344718139,1733735438239,-500.0,9.999e-05,2]
[344718140,1733735438248,-500.0,9.999e-05,2]
[344718141,1733735438257,-500.0,9.999e-05,2]
[344718142,1733735438266,-500.0,9.999e-05,2]
[344718143,1733735438276,-558.17,9.999e-05,2]
[344718144,1733735438285,-153.76604877,9.999e-05,2]
[344718145,1733735438294,-500.0,9.999e-05,2]
[344718146,1733735438303,-500.0,9.999e-05,2]
[344718147,1733735438311,-482.64,9.999e-05,2]
[344718149,1733735438321,-500.0,9.999e-05,2]
[344718151,1733735438330,-611.06,9.999e-05,2]
[344718152,1733735438339,-500.0,9.999e-05,2]
[344718154,1733735438348,-500.0,9.999e-05,2]
[344718155,1733735438358,-558.55,9.999e-05,2]
[344718156,1733735438367,-500.0,9.999e-05,2]
[344718157,1733735438376,-500.0,9.999e-05,2]
[344718158,1733735438385,-500.0,9.999e-05,2]
[344718159,1733735438394,-500.0,9.999e-05,2]
[344718160,1733735438404,-500.0,9.999e-05,2]
[344718161,1733735438413,-500.0,9.999e-05,2]
[344718162,1733735438422,-500.0,9.999e-05,2]
[344718163,1733735438432,-342.03454349,9.999e-05,2]
[344718164,1733735438441,-500.0,9.999e-05,2]
[344718165,1733735438451,-500.0,9.999e-05,2]
[344718166,1733735438460,-465.49519875,9.999e-05,2]
[344718167,1733735438469,-500.0,9.999e-05,2]
[344718168,1733735438480,-500.0,9.999e-05,2]
[344718169,1733735438490,-500.0,9.999e-05,2]
[344718170,1733735438500,-500.0,9.999e-05,2]
[344718171,1733735438509,-193.9,9.999e-05,2]
[344718172,1733735438519,-569.6,9.999e-05,2]
[344718173,1733735438528,-569.6,9.999e-05,2]
[344718174,1733735438537,-569.6,9.999e-05,2]
[344718175,1733735438547,-569.6,9.999e-05,2]
[344718176,1733735438556,-569.6,9.999e-05,2]
[344718177,1733735438565,-569.6,9.999e-05,2]
[344718178,1733735438576,-569.6,9.999e-05,2]
[344718179,1733735438586,-569.6,9.999e-05,2]
[344718180,1733735438595,-569.6,9.999e-05,2]
[344718181,1733735438604,-569.6,9.999e-05,2]
[344718182,1733735438613,-569.6,9.999e-05,2]
[344718183,1733735438622,-569.6,9.999e-05,2]
[344718184,1733735438632,-569.6,9.999e-05,2]
[344718185,1733735438641,-569.6,9.999e-05,2]
[344718186,1733735438651,-569.6,9.999e-05,2]
[344718187,1733735438670,-569.6,9.999e-05,2]
[344718188,1733735438679,-569.6,9.999e-05,2]
[344718189,1733735438689,-569.6,9.999e-05,2]
[344718190,1733735438700,-569.6,9.999e-05,2]
[344718191,1733735438709,-569.6,9.999e-05,2]
[344718192,1733735438719,-569.6,9.999e-05,2]
[344718193,1733735438730,-569.6,9.999e-05,2]
[344718194,1733735438739,-569.73,9.999e-05,2]
[344718195,1733735438749,-683.42,9.999e-05,2]
[344718196,1733735438758,-683.42,9.999e-05,2]
[344718197,1733735438769,-683.42,9.999e-05,2]
[344718198,1733735438780,-683.42,9.999e-05,2]
[344718199,1733735438790,-683.42,9.999e-05,2]
[344718200,1733735438799,-683.42,9.999e-05,2]
[344718201,1733735438809,-683.42,9.999e-05,2]
[344718202,1733735438818,-683.42,9.999e-05,2]
[344718203,1733735438828,-683.42,9.999e-05,2]
[344718204,1733735438837,-683.42,9.999e-05,2]
[344718205,1733735438847,-683.42,9.999e-05,2]
[344718206,1733735438856,-683.42,9.999e-05,2]
[344718207,1733735438865,-683.42,9.999e-05,2]
[344718208,1733735438875,-683.42,9.999e-05,2]
[344718209,1733735438885,-683.42,9.999e-05,2]
[344718210,1733735438895,-683.42,9.999e-05,2]
[344718211,1733735438907,-683.42,9.999e-05,2]
[344718212,1733735438918,-683.42,9.999e-05,2]
[344718213,1733735438928,-683.42,9.999e-05,2]
[344718214,1733735438937,-683.42,9.999e-05,2]
[344718215,1733735438947,-683.42,9.999e-05,2]
[344718216,1733735438956,-683.42,9.999e-05,2]
[344718217,1733735438966,-683.65747476,9.999e-05,2]
[344718218,1733735438977,-500.0,9.999e-05,2]
[344718219,1733735438990,-500.0,9.999e-05,2]
[344718220,1733735438999,-500.0,9.999e-05,2]
[344718221,1733735439009,-500.0,9.999e-05,2]
[344718222,1733735439018,-796.0,0.0001,2]
[344718223,1733735439029,-87280.5643336,0.0001,2]
[344718224,1733735439306,-7994.841303,0.0001,2]
[344718225,1733735439322,-773.64,0.0001,2]
[344718226,1733735439338,-58907.54015464,0.0001,2]
[344718230,1733735439760,-589.0,9.999e-05,2]
[344718231,1733735439774,-589.0,9.999e-05,2]
[344718232,1733735439784,-322.0,9.999e-05,2]
[344718233,1733735439874,-267.0,9.999e-05,2]
[344718234,1733735439884,-589.0,9.999e-05,2]
[344718235,1733735439893,-589.0,9.999e-05,2]
[344718236,1733735439903,-589.0,9.999e-05,2]
[344718237,1733735439913,-589.0,9.999e-05,2]
[344718238,1733735439922,-95935.0446279,0.0001,2]
[344718239,1733735439933,-119552.93625763,0.0001,2]
[344718240,1733735439945,-24162.5,0.0001,2]
[344718241,1733735439956,-42256.59886739,0.0001,2]
[344718242,1733735441779,-589.0,9.999e-05,2]
[344718243,1733735441789,-589.0,9.999e-05,2]
[344718244,1733735441799,-589.0,9.999e-05,2]
[344718245,1733735441810,-589.0,9.999e-05,2]
[344718246,1733735441820,-589.0,9.999e-05,2]
[344718247,1733735441830,-589.0,9.999e-05,2]
[344718248,1733735441840,-589.0,9.999e-05,2]
[344718249,1733735441851,-15285.78465155,0.0001,2]
[344718250,1733735441891,-8253.45914076,0.0001,2]
[344718251,1733735441948,-589.0,9.999e-05,2]
[344718252,1733735441958,-85.08,0.0001,2]
[344718253,1733735441969,-356.034375,0.0001,2]
[344718254,1733735441982,-540.0,0.0001,2]
[344718255,1733735441994,-279.936614,0.0001,2]
[344718256,1733735442005,-525.848112,0.0001,2]
[344718260,1733735442830,-589.0,9.999e-05,2]
[344718261,1733735442840,-589.0,9.999e-05,2]
[344718262,1733735442854,-589.0,9.999e-05,2]
[344718263,1733735442865,-20580.90054524,0.0001,2]
[344718264,1733735442879,-2658.18836342,0.0001,2]
[344718265,1733735442893,-1672.48247773,0.0001,2]
[344718266,1733735442950,-7011.46038346,0.0001,2]
[344718267,1733735442963,-1240.33813845,0.0001,2]
[344718268,1733735442978,-14682.50010164,0.0001,2]
[344718269,1733735443002,-103389.99207155,0.0001,2]
[344718270,1733735443017,-7199.9999995,0.0001,2]
[344718271,1733735443031,-71400.0,0.0001,2]
[344718272,1733735443049,-288.88766798,0.0001,2]
[344718273,1733735443113,-589.0,9.999e-05,2]
[344718274,1733735443125,-1679.2000001,0.0001,2]
[344718275,1733735443170,-311832.0,0.0001,2]
[344718276,1733735443183,-1335489.39668924,0.0001,2]
[344718277,1733735443333,-589.0,9.999e-05,2]
[344718279,1733735443344,-9163.5,0.0001,2]
[344718291,1733735445768,-589.0,9.999e-05,2]
[344718292,1733735445783,-185.91,9.999e-05,2]
[344718293,1733735445831,-403.09,9.999e-05,2]
[344718294,1733735445843,-589.05,9.999e-05,2]
[344718295,1733735445854,-3759.65988,0.0001,2]
[344718296,1733735445867,-3853.49861859,0.0001,2]
[344718297,1733735445881,-297.13658783,0.0001,2]
[344718298,1733735445892,-472.65,0.0001,2]
[344718299,1733735445904,-500.0,0.0001,2]
[344718300,1733735445957,-3921.81580609,0.0001,2]
[344718301,1733735446016,-367.155,0.0001,2]
[344718302,1733735446078,-26495.67462834,0.0001,2]
[344718303,1733735446093,-119000.0,0.0001,2]
[344718304,1733735446194,-2155.06690175,0.0001,2]
[344718312,1733736150325,-1500.0,8.93e-05,2]
[344718313,1733736150349,-4381.99879659,9.028e-05,2]
[344718314,1733736150373,-189.15,9.029e-05,2]
[344718315,1733736150398,-23900.0,9.058e-05,2]
[344718316,1733736150423,-250.0,9.103e-05,2]
[344718317,1733736150446,-260.74,9.12e-05,2]
[344718318,1733736150470,-172.68494749,9.12e-05,2]
[344718319,1733736150497,-1561.375,9.12e-05,2]
[344718320,1733736150522,-391.45,9.175e-05,2]
[344718321,1733736150546,-435.74,9.205e-05,2]
[344718322,1733736150570,-435.74,9.205e-05,2]
[344718323,1733736150859,-17864.77,9.279e-05,2]
[344718324,1733736150887,-435.74,9.28e-05,2]
[344718325,1733736150912,-33220.61125592,9.414e-05,2]
[344718360,1733736632108,-727.5237665,7e-05,2]
[344718361,1733736632115,-1276.29869986,8.219e-05,2]
[344718362,1733736632122,-1942.69,8.219e-05,2]
[344718363,1733736632129,-150.0,8.554e-05,2]
[344718364,1733736632136,-250.0,8.626e-05,2]
[344718365,1733736632142,-4222.0,8.706e-05,2]
[344718366,1733736632149,-150.0,8.742e-05,2]
[344718367,1733736632156,-1281.74,8.824e-05,2]
[344718368,1733736632162,-300.0,8.83e-05,2]
[344718369,1733736632174,-2000.0,8.831e-05,2]
[344718370,1733736632183,-300.0,8.948e-05,2]
[344718371,1733736632192,-2348.88476573,8.975e-05,2]
[344718372,1733736632285,-1510.75523427,8.975e-05,2]
[344718373,1733736632293,-507.24,8.975e-05,2]
[344718374,1733736632300,-2399.56,9.004e-05,2]
[344718375,1733736632307,-1000.0,9.038e-05,2]
[344718376,1733736632313,-291.56,9.062e-05,2]
[344718377,1733736632321,-3734.08,9.091e-05,2]
[344718378,1733736632330,-150.0,9.168e-05,2]
[344718379,1733736632339,-974.56,9.168e-05,2]
[344718380,1733736632348,-150.0,9.168e-05,2]
[344718381,1733736632358,-435.14,9.205e-05,2]
[344718382,1733736632367,-974.56,9.278e-05,2]
[344718383,1733736632376,-150.0,9.278e-05,2]
[344718384,1733736632385,-150.0,9.278e-05,2]
[344718385,1733736632395,-300.0,9.378e-05,2]
[344718386,1733736632405,-300.0,9.378e-05,2]
[344718387,1733736632414,-150.0,9.414e-05,2]
[344718388,1733736632424,-150.0,9.414e-05,2]
[344718389,1733736632433,-150.0,9.414e-05,2]
[344718390,1733736632442,-295.51501484,9.414e-05,2]
[344718391,1733736632452,-150.0,9.485e-05,2]
[344718392,1733736632461,-150.35,9.485e-05,2]
[344718394,1733736632470,-435.74,9.49e-05,2]
[344718396,1733736632479,-325.394,9.5e-05,2]
[344718397,1733736632489,-150.6,9.5e-05,2]
[344718398,1733736632498,-435.74,9.5e-05,2]
[344718399,1733736632511,-834.63,9.541e-05,2]
[344718400,1733736632520,-150.0,9.547e-05,2]
[344718401,1733736632529,-150.0,9.547e-05,2]
[344718403,1733736632538,-300.26,9.678e-05,2]
[344718405,1733736632547,-420.0,9.713e-05,2]
[344718407,1733736632557,-205.0,9.8e-05,2]
[344718409,1733736632566,-383.9515,9.899e-05,2]
[344718411,1733736632575,-435.74,9.9e-05,2]
[344718413,1733736632584,-150.0,9.9e-05,2]
[344718415,1733736632593,-435.74,9.9e-05,2]
[344718417,1733736632602,-300.0,9.9e-05,2]
[344718419,1733736632611,-499.277,9.945e-05,2]
[344718421,1733736632620,-535.0,9.945e-05,2]
[344718423,1733736632629,-3530.0,9.945e-05,2]
[344718425,1733736632638,-567.0,9.945e-05,2]
[344718427,1733736632647,-150.0,9.945e-05,2]
[344718428,1733736632656,-2486.38,9.945e-05,2]
[344718430,1733736632665,-1167.0,9.945e-05,2]
[344718433,1733736632675,-634.0,9.945e-05,2]
[344718435,1733736632684,-1262.0,9.945e-05,2]
[344718436,1733736632693,-435.5,9.95e-05,2]
[344718439,1733736632702,-150.0,9.95e-05,2]
[344718441,1733736632712,-150.0,9.95e-05,2]
[344718443,1733736632721,-200.0,9.954e-05,2]
[344718445,1733736632730,-3517.0,9.973e-05,2]
[344718447,1733736632740,-553.0292564,9.99e-05,2]
[344718449,1733736632750,-852.33103764,9.99e-05,2]
[344718451,1733736632762,-170.4662074,9.99e-05,2]
[344718453,1733736632772,-1567.3599418,9.99e-05,2]
[344718454,1733736632781,-516.8390514,9.993e-05,2]
[344718455,1733736632790,-1462.869279,9.993e-05,2]
[344718456,1733736632799,-150.0,9.997e-05,2]
[344718457,1733736632808,-150.0,9.997e-05,2]
[344718458,1733736632817,-150.0,9.997e-05,3]
[344718459,1733736632826,-1470.84354283,9.998e-05,2]
[344718460,1733736632835,-500.0,9.998e-05,2]
[344718461,1733736632845,-500.0,9.998e-05,2]
[344718462,1733736632854,-500.0,9.998e-05,2]